bitfinex/quotes_SOLUSD_20250204
["timestamp","ask_amount","ask_price","bid_price","bid_amount"]
[1738648265980,44.89185552,203.89,203.81,44.74778862]
[1738648266309,44.76636552,203.92,203.81,89.51415414]
[1738648266490,1.23314393,204.01,203.81,89.51415414]
[1738648266491,44.76636552,203.96,203.87,44.76636552]
[1738648266695,3.9213,204.01,203.93,44.76636552]
[1738648266898,3.9213,204.01,203.97,44.76636552]
[1738648267100,3.9202,204.07,203.99,44.76636552]
[1738648267297,44.76636552,204.1,204.01,44.76636552]
[1738648267514,3.9194,204.11,204.03,44.76636552]
[1738648267810,20.0,204.07,204.01,44.82936552]
[1738648268010,20.0,204.05,204.01,0.063]
[1738648268217,0.12549,204.05,204.01,0.063]
[1738648268422,20.0,204.02,204.01,0.063]
[1738648268599,44.76636552,204.08,204.01,0.063]
[1738648268798,44.76636552,204.14,204.06,44.76636552]
[1738648269106,14.2757,204.21,204.08,44.76636552]
[1738648269107,44.76636552,204.16,204.08,44.76636552]
[1738648269310,44.76636552,204.2,204.1,44.76636552]
[1738648269483,44.76636552,204.22,204.13,44.76636552]
[1738648269686,44.76636552,204.24,204.15,44.76636552]
[1738648269887,44.76636552,204.22,204.13,44.76636552]
[1738648270192,44.76636552,204.18,204.07,44.76636552]
[1738648270403,0.12549,204.17,204.09,44.76636552]
[1738648270590,44.76636552,204.18,204.01,4.9645]
[1738648270591,44.76636552,204.16,204.07,44.76636552]
[1738648270801,44.76636552,204.3,204.09,13.41184853]
[1738648270802,44.76636552,204.21,204.09,13.41184853]
[1738648271001,44.76636552,204.23,204.15,44.76636552]
[1738648271315,44.76636552,204.29,204.19,44.76636552]
[1738648271533,44.76636552,204.33,204.23,44.76636552]
[1738648271701,0.03,204.36,204.3,1.0]
[1738648271884,0.03,204.36,204.33,13.41184853]
[1738648272085,0.0001,204.37,204.35,44.76636552]
[1738648272893,0.0001,204.37,204.34,6.74]
[1738648273194,0.0001,204.37,204.33,44.76636552]
[1738648273508,0.0001,204.37,204.31,44.76636552]
[1738648273691,0.12549,204.34,204.25,51.50636552]
[1738648274029,64.76646552,204.37,204.27,44.76636552]
[1738648274186,44.76636552,204.35,204.25,51.50636552]
[1738648274513,44.76646552,204.37,204.27,44.76636552]
[1738648274718,20.0,204.34,204.25,51.50636552]
[1738648274885,0.12549,204.29,204.25,6.74]
[1738648275084,44.76636552,204.35,204.25,51.50636552]
[1738648275321,44.76636552,204.31,204.25,6.74]
[1738648275631,44.76636552,204.36,204.27,44.76636552]
[1738648275842,0.0001,204.37,204.29,44.76636552]
[1738648275995,0.0001,204.37,204.26,4.8957]
[1738648275996,0.0001,204.37,204.33,44.76636552]
[1738648276197,0.0001,204.37,204.27,13.41184853]
[1738648276198,0.0001,204.37,204.35,44.76636552]
[1738648276526,0.0001,204.37,204.31,44.76636552]
[1738648276901,0.0001,204.37,204.33,44.76636552]
[1738648277103,0.0001,204.37,204.35,44.76636552]
[1738648277325,0.0001,204.37,204.36,13.41184853]
[1738648277826,0.0001,204.37,204.35,44.76636552]
[1738648278015,44.76636552,204.44,204.35,44.76636552]
[1738648278420,44.76636552,204.48,204.37,44.76636552]
[1738648278619,0.12549,204.41,204.33,44.76636552]
[1738648278931,44.76636552,204.48,204.39,44.76636552]
[1738648279100,44.79636552,204.52,204.43,44.76636552]
[1738648279507,0.03,204.52,204.45,44.76636552]
[1738648279714,44.79636552,204.52,204.43,44.76636552]
[1738648279908,44.76636552,204.46,204.37,44.76636552]
[1738648280322,44.76636552,204.44,204.33,44.76636552]
[1738648280804,0.12549,204.39,204.32,14.96345346]
[1738648281328,44.76636552,204.44,204.35,44.76636552]
[1738648281556,0.03,204.52,204.43,44.76636552]
[1738648281743,44.79636552,204.52,204.42,44.76636552]
[1738648281908,44.76636552,204.46,204.38,44.76636552]
[1738648282242,0.03,204.52,204.44,44.76636552]
[1738648282433,0.03,204.52,204.48,44.76636552]
[1738648282607,0.03,204.52,204.46,44.76636552]
[1738648282825,44.79636552,204.52,204.44,44.76636552]
[1738648283022,0.03,204.52,204.44,44.76636552]
[1738648283260,0.03,204.52,204.46,44.76636552]
[1738648283423,0.03,204.52,204.44,44.76636552]
[1738648283624,44.76636552,204.47,204.38,44.76636552]
[1738648283829,0.12549,204.44,204.36,44.76636552]
[1738648284045,44.76636552,204.51,204.42,44.76636552]
[1738648284326,0.03,204.52,204.44,44.76636552]
[1738648284649,0.03,204.52,204.5,44.76636552]
[1738648284827,0.03,204.52,204.51,4.8897]
[1738648285033,0.03,204.52,204.5,44.76636552]
[1738648285034,0.03,204.52,204.48,49.65666552]
[1738648285233,0.03,204.52,204.5,44.76636552]
[1738648285432,0.03,204.52,204.48,49.65666552]
[1738648285655,0.03,204.52,204.44,44.76636552]
[1738648286039,0.03,204.52,204.48,44.76636552]
[1738648286246,0.03,204.52,204.5,44.76636552]
[1738648286964,0.03,204.52,204.51,4.8897]
[1738648287364,0.15549,204.52,204.44,44.76636552]
[1738648287654,0.03,204.52,204.48,44.76636552]
[1738648287836,0.03,204.53,204.5,44.76636552]
[1738648288151,0.0001,204.54,204.53,13.41184853]
[1738648288357,0.03,204.65,204.56,33.41184853]
[1738648288561,0.03,204.65,204.64,44.76636552]
[1738648288981,44.76636552,204.76,204.64,49.65296552]
[1738648289247,82.1,204.83,204.7,44.76636552]
[1738648289248,44.76636552,204.83,204.7,44.76636552]
[1738648289455,44.76636552,204.85,204.7,102.94457957]
[1738648289758,44.76636552,204.91,204.82,44.76636552]
[1738648290061,44.76636552,204.84,204.75,44.76636552]
[1738648290220,44.76636552,204.82,204.73,44.76636552]
[1738648290421,0.12549,204.79,204.71,44.76636552]
[1738648290859,44.76636552,204.84,204.75,44.76636552]
[1738648291039,44.76636552,204.84,204.72,17.0965]
[1738648291040,44.76636552,204.9,204.81,44.76636552]
[1738648291240,44.76636552,204.94,204.85,44.76636552]
[1738648291622,2.0,204.96,204.81,44.76636552]
[1738648291829,44.76636552,204.84,204.75,44.76636552]
[1738648292048,59.43636552,205.0,204.77,44.76636552]
[1738648292049,44.79636552,204.86,204.77,44.76636552]
[1738648292462,0.03,204.86,204.79,44.76636552]
[1738648292748,0.12549,204.83,204.73,44.76636552]
[1738648292948,0.12549,204.81,204.74,4.8842]
[1738648293333,44.79636552,204.86,204.75,44.76636552]
[1738648293534,0.03,204.86,204.81,44.76636552]
[1738648293740,44.76636552,204.87,204.76,44.76636552]
[1738648293939,44.76636552,204.87,204.78,44.76636552]
[1738648294171,13.53733853,204.86,204.78,44.76636552]
[1738648294359,0.12549,204.82,204.74,49.65056552]
[1738648294561,44.76636552,204.87,204.77,44.76636552]
[1738648294731,44.76636552,204.85,204.75,44.76636552]
[1738648294931,44.76636552,204.89,204.81,44.76636552]
[1738648295132,44.76636552,204.91,204.83,44.76636552]
[1738648295629,44.76636552,204.92,204.82,44.76636552]
[1738648295966,0.12549,204.86,204.77,44.76636552]
[1738648296142,13.53733853,204.86,204.77,44.76636552]
[1738648296459,44.76636552,204.87,204.77,44.76636552]
[1738648296661,44.76636552,204.83,204.75,44.76636552]
[1738648296958,1.23174338,204.97,204.71,17.0972]
[1738648296959,44.76636552,204.87,204.77,44.76636552]
[1738648297265,1.0,204.92,204.71,17.0972]
[1738648297266,44.76636552,204.89,204.79,44.76636552]
[1738648297466,0.12549,204.84,204.75,44.76636552]
[1738648297624,0.12549,204.81,204.75,44.76636552]
[1738648297826,0.12549,204.77,204.71,49.65126552]
[1738648298362,44.76636552,204.83,204.73,44.76636552]
[1738648298660,2.0,204.91,204.81,44.76636552]
[1738648298661,44.76636552,204.91,204.81,44.76636552]
[1738648298829,44.76636552,204.89,204.79,44.76636552]
[1738648299031,44.76636552,204.83,204.73,44.76636552]
[1738648299230,0.12549,204.77,204.71,49.65126552]
[1738648299444,0.12549,204.77,204.71,4.8849]
[1738648299664,44.76636552,204.79,204.71,44.76636552]
[1738648299964,44.76636552,204.85,204.75,44.76636552]
[1738648300140,44.76636552,204.77,204.69,49.65156552]
[1738648300349,44.76636552,204.85,204.75,44.76636552]
[1738648300730,1.23442197,204.94,204.67,44.76636552]
[1738648300731,0.12549,204.75,204.67,44.76636552]
[1738648300930,44.89185552,204.75,204.65,49.65266552]
[1738648301232,20.0,204.74,204.67,44.76636552]
[1738648301541,0.12549,204.72,204.65,4.8863]
[1738648301740,0.12549,204.65,204.57,44.76636552]
[1738648301937,1.0,204.73,204.57,44.76636552]
[1738648301938,44.76636552,204.68,204.6,44.76636552]
[1738648302135,44.76636552,204.68,204.59,4.8876]
[1738648302334,0.12549,204.65,204.59,4.8876]
[1738648302556,44.76636552,204.72,204.64,44.76636552]
[1738648302756,44.76636552,204.76,204.67,44.76636552]
[1738648303060,20.0,204.73,204.63,44.76636552]
[1738648303267,44.76636552,204.72,204.63,44.76636552]
[1738648303564,0.12549,204.73,204.65,44.82936552]
[1738648303740,0.12549,204.69,204.65,0.063]
[1738648304069,13.41184853,204.74,204.65,0.063]
[1738648304070,44.76636552,204.71,204.65,0.063]
[1738648304455,0.12549,204.7,204.65,0.063]
[1738648304633,0.12549,204.67,204.65,0.063]
[1738648304838,20.12549,204.66,204.65,0.063]
[1738648305155,16.95763853,204.66,204.65,0.063]
[1738648305356,20.0,204.64,204.53,4.8891]
[1738648305669,20.0,204.55,204.5,5.3631]
[1738648305844,44.76636552,204.58,204.5,10.2529]
[1738648306047,3.4187,204.76,204.51,1.7333978]
[1738648306247,44.76636552,204.74,204.65,44.76636552]
[1738648306567,44.89185552,204.68,204.59,44.76636552]
[1738648306736,0.12549,204.64,204.59,44.76636552]
[1738648307073,44.76636552,204.72,204.63,44.76636552]
[1738648307279,54.31136552,204.8,204.58,12.2201]
[1738648307280,44.76636552,204.74,204.65,44.76636552]
[1738648307431,44.76636552,204.78,204.69,44.76636552]
[1738648307632,44.76636552,204.74,204.65,44.76636552]
[1738648307853,44.76636552,204.7,204.61,44.76636552]
[1738648308056,20.0,204.71,204.63,44.76636552]
[1738648308367,0.12549,204.68,204.61,44.76636552]
[1738648308567,0.12549,204.66,204.59,44.76636552]
[1738648308977,44.76636552,204.72,204.63,44.76636552]
[1738648309273,44.76636552,204.7,204.62,4.8871]
[1738648309442,44.76636552,204.7,204.57,20.13184853]
[1738648309443,0.12549,204.64,204.6,4.8875]
[1738648309643,20.0,204.59,204.53,44.76636552]
[1738648309868,44.76636552,204.62,204.53,44.76636552]
[1738648310040,44.76636552,204.64,204.55,44.76636552]
[1738648310433,44.76636552,204.74,204.62,44.76636552]
[1738648310655,84.5481,204.79,204.57,44.76636552]
[1738648310656,44.76636552,204.66,204.57,44.76636552]
[1738648310960,44.76636552,204.7,204.61,44.76636552]
[1738648311132,89.6753,204.79,204.63,44.76636552]
[1738648311133,44.76636552,204.72,204.63,44.76636552]
[1738648311442,44.76636552,204.78,204.69,44.76636552]
[1738648311651,0.03,204.79,204.73,44.76636552]
[1738648311846,0.03,204.79,204.77,44.76636552]
[1738648312779,44.76636552,204.94,204.77,44.76636552]
[1738648312963,44.76636552,204.98,204.88,44.76636552]
[1738648313169,44.76636552,204.94,204.84,44.76636552]
[1738648313366,44.76636552,204.92,204.82,44.76636552]
[1738648313555,0.12549,204.89,204.8,44.76636552]
[1738648313763,0.12549,204.89,204.82,44.76636552]
[1738648314098,0.12549,204.89,204.8,44.76636552]
[1738648314249,44.76636552,204.9,204.8,44.76636552]
[1738648314764,0.12549,204.86,204.8,44.76636552]
[1738648314946,13.41184853,204.92,204.8,44.76636552]
[1738648314947,44.76636552,204.96,204.85,44.76636552]
[1738648315143,44.76636552,204.98,204.88,44.76636552]
[1738648315377,0.12549,204.99,204.9,44.76636552]
[1738648315553,0.12549,204.94,204.88,44.76636552]
[1738648315959,0.03,204.96,204.88,44.76636552]
[1738648316365,0.15549,204.96,204.88,44.76636552]
[1738648316548,0.15549,204.96,204.84,12.2046]
[1738648316549,44.76636552,204.91,204.81,4.8825]
[1738648316760,44.76636552,204.91,204.82,44.76636552]
[1738648316960,44.76636552,204.93,204.82,44.76636552]
[1738648317163,20.0,204.9,204.82,44.76636552]
[1738648317366,20.0,204.88,204.82,44.76636552]
[1738648317561,0.12549,204.83,204.78,44.76636552]
[1738648317771,0.12549,204.85,204.75,44.59342247]
[1738648318073,3.4158,204.93,204.83,44.59342247]
[1738648318248,3.4155,204.95,204.81,44.59342247]
[1738648318451,3.4155,204.95,204.72,17.0965]
[1738648318452,20.0,204.92,204.77,44.59342247]
[1738648318655,20.0,204.88,204.77,44.59342247]
[1738648319148,0.12549,204.87,204.75,44.59342247]
[1738648319346,0.12549,204.82,204.73,44.59342247]
[1738648319551,20.0,204.83,204.79,44.59342247]
[1738648319778,3.4154,204.95,204.81,44.59342247]
[1738648319979,3.4154,204.95,204.83,44.59342247]
[1738648320286,0.12549,204.88,204.75,44.59342247]
[1738648320497,0.12549,204.84,204.77,44.59342247]
[1738648320686,0.12549,204.84,204.73,44.59342247]
[1738648320998,1.0,204.93,204.71,0.063]
[1738648320999,11.954,204.95,204.81,44.59342247]
[1738648321207,1.0,204.99,204.85,44.59342247]
[1738648321208,3.4149,204.98,204.85,44.59342247]
[1738648321365,8.5354,205.03,204.87,44.59342247]
[1738648321563,12.0601,205.08,204.91,44.59342247]
[1738648321768,3.4143,205.02,204.93,44.59342247]
[1738648321969,12.0601,205.08,204.95,44.59342247]
[1738648322172,3.4132,205.09,204.95,58.005271]
[1738648322399,8.5616,205.12,204.96,13.53733853]
[1738648322400,3.4427,205.12,204.96,13.53733853]
[1738648322571,3.4427,205.12,204.99,58.005271]
[1738648322879,3.4427,205.12,204.96,0.12549]
[1738648322880,1.03,205.12,204.92,44.59342247]
[1738648323069,10.5325,205.1,204.92,44.59342247]
[1738648323264,13.53733853,205.03,204.86,44.59342247]
[1738648323465,0.12549,204.95,204.84,44.59342247]
[1738648323690,0.12549,204.91,204.82,44.59342247]
[1738648324126,1.03,205.0,204.8,44.59342247]
[1738648324127,1.0,204.99,204.8,44.59342247]
[1738648324271,12.6261,205.0,204.88,44.59342247]
[1738648324272,0.03,205.0,204.88,44.59342247]
[1738648324478,0.03,205.0,204.86,44.59342247]
[1738648324691,0.12549,204.94,204.8,44.59342247]
[1738648324879,0.12549,204.9,204.8,44.59342247]
[1738648325097,20.0,204.91,204.82,44.59342247]
[1738648325308,23.4162,204.91,204.8,44.59342247]
[1738648325471,23.4162,204.91,204.73,4.8844]
[1738648325472,20.0,204.83,204.73,4.8844]
[1738648325672,20.0,204.83,204.74,44.59342247]
[1738648325904,20.0,204.83,204.76,44.59342247]
[1738648326110,0.12549,204.82,204.76,44.59342247]
[1738648326270,8.5386,204.96,204.8,44.59342247]
[1738648326470,8.5386,204.96,204.83,44.59342247]
[1738648326471,11.954,204.95,204.83,44.59342247]
[1738648326675,0.03,205.0,204.83,44.59342247]
[1738648326911,3.4148,204.99,204.82,44.59342247]
[1738648327073,0.12549,204.9,204.8,44.59342247]
[1738648327274,13.53733853,204.9,204.8,44.59342247]
[1738648327580,20.0,204.87,204.8,44.59342247]
[1738648327929,20.0,204.87,204.72,5.8847]
[1738648327930,11.9829,204.97,204.84,44.59342247]
[1738648328096,13.53733853,204.96,204.84,44.59342247]
[1738648328417,20.0,204.89,204.82,44.59342247]
[1738648328625,20.0,204.89,204.72,4.8847]
[1738648328626,13.53733853,204.88,204.72,4.8847]
[1738648328806,29.0585,204.97,204.78,44.59342247]
[1738648329003,0.03,204.97,204.82,44.59342247]
[1738648329226,0.03,204.97,204.84,44.59342247]
[1738648329424,0.03,204.97,204.71,1.063]
[1738648329590,0.12549,204.9,204.8,44.59342247]
[1738648329795,1.03,204.97,204.8,44.59342247]
[1738648329996,0.12549,204.96,204.78,44.59342247]
[1738648330499,0.12549,204.88,204.78,44.59342247]
[1738648330911,0.12549,204.84,204.76,44.59342247]
[1738648331092,20.0,204.85,204.78,44.59342247]
[1738648331294,20.0,204.85,204.76,44.59342247]
[1738648331490,17.077,204.96,204.76,44.59342247]
[1738648331491,20.0,204.88,204.76,44.59342247]
[1738648331695,20.0,204.88,204.72,44.59342247]
[1738648331925,20.0,204.76,204.71,0.063]
[1738648332125,13.53733853,204.75,204.71,0.063]
[1738648332326,33.53733853,204.72,204.71,0.063]
[1738648332502,33.53733853,204.72,204.71,0.0001]
[1738648332698,1.0,204.88,204.71,0.0001]
[1738648333015,20.0,204.86,204.71,0.0001]
[1738648333224,0.12549,204.73,204.71,0.0001]
[1738648333525,13.53733853,204.77,204.71,0.0001]
[1738648333526,58.19551533,204.72,204.71,0.0001]
[1738648333693,58.19551533,204.72,204.5,57.6981768]
[1738648333694,20.12549,204.68,204.54,44.6581768]
[1738648334059,64.7836668,204.57,204.5,0.063]
[1738648334328,0.12549,204.56,204.5,0.063]
[1738648334530,58.07002533,204.54,204.5,0.063]
[1738648334705,58.19551533,204.54,204.5,0.063]
[1738648334893,58.19551533,204.54,204.53,0.0001]
[1738648335094,14.41184853,204.49,204.33,7.48498847]
[1738648335298,44.6581768,204.4,204.33,7.48498847]
[1738648335505,3.4228,204.51,204.32,0.063]
[1738648335506,44.6581768,204.47,204.38,44.6581768]
[1738648335810,44.6581768,204.55,204.46,44.6581768]
[1738648336006,44.6581768,204.55,204.36,44.6581768]
[1738648336007,44.6581768,204.47,204.36,44.6581768]
[1738648336204,0.12549,204.42,204.34,44.6581768]
[1738648336424,44.6581768,204.45,204.36,44.6581768]
[1738648336706,44.6581768,204.51,204.42,44.6581768]
[1738648336925,44.6581768,204.53,204.44,44.6581768]
[1738648337105,20.0,204.46,204.4,44.6581768]
[1738648337509,44.6581768,204.53,204.44,44.6581768]
[1738648337710,44.6581768,204.59,204.51,44.6581768]
[1738648338033,44.6581768,204.59,204.43,0.12549]
[1738648338034,6.97406112,204.58,204.43,0.12549]
[1738648338243,6.97406112,204.58,204.52,44.6581768]
[1738648338436,6.97406112,204.58,204.56,44.6581768]
[1738648338606,6.97406112,204.58,204.52,44.6581768]
[1738648338808,6.97406112,204.58,204.5,44.6581768]
[1738648339316,6.97406112,204.58,204.56,44.6581768]
[1738648339519,6.97406112,204.58,204.54,44.6581768]
[1738648339831,44.6581768,204.63,204.54,44.6581768]
[1738648340131,44.6581768,204.72,204.61,44.6581768]
[1738648340318,44.6581768,204.72,204.63,44.6581768]
[1738648340519,44.6581768,204.7,204.61,44.6581768]
[1738648340715,44.6581768,204.72,204.63,44.6581768]
[1738648340933,44.6581768,204.74,204.65,44.6581768]
[1738648341437,44.6581768,204.7,204.61,44.6581768]
[1738648341803,44.6581768,204.76,204.67,44.6581768]
[1738648342007,44.6581768,204.78,204.69,44.6581768]
[1738648342205,3.4178,204.81,204.73,44.6581768]
[1738648342445,44.6581768,204.82,204.73,44.6581768]
[1738648342806,18.0811,204.91,204.63,2.25098]
[1738648342807,44.6581768,204.86,204.77,44.6581768]
[1738648343002,44.6581768,204.8,204.71,44.6581768]
[1738648343343,44.7836668,204.78,204.69,44.6581768]
[1738648343558,20.12549,204.73,204.64,50.2089768]
[1738648343730,44.6581768,204.72,204.64,5.5508]
[1738648344047,44.6581768,204.76,204.68,44.6581768]
[1738648344251,44.6581768,204.78,204.7,44.6581768]
[1738648344537,44.6581768,204.76,204.67,44.6581768]
[1738648344914,20.0,204.73,204.69,44.6581768]
[1738648345241,0.12549,204.72,204.65,44.6581768]
[1738648345415,20.0,204.71,204.65,44.6581768]
[1738648345608,20.0,204.75,204.69,44.6581768]
[1738648345810,44.6581768,204.8,204.71,44.6581768]
[1738648346016,48.0757768,204.82,204.73,44.6581768]
[1738648346345,20.0,204.79,204.73,44.6581768]
[1738648346838,44.6581768,204.88,204.77,44.6581768]
[1738648347145,48.0737768,204.94,204.84,44.6581768]
[1738648347352,44.6581768,204.9,204.8,44.6581768]
[1738648347507,44.6581768,204.9,204.82,44.6581768]
[1738648347713,20.0,204.87,204.82,44.6581768]
[1738648347941,20.0,204.87,204.76,4.8837]
[1738648347942,44.6581768,204.9,204.8,44.6581768]
[1738648348245,44.6581768,204.88,204.8,44.6581768]
[1738648348636,44.6581768,204.9,204.8,44.6581768]
[1738648348834,3.4156,204.94,204.76,17.0931]
[1738648348835,44.6581768,204.92,204.82,44.6581768]
[1738648349012,20.0,204.87,204.82,44.6581768]
[1738648349342,44.6581768,204.91,204.82,4.8821]
[1738648349647,48.0735768,204.95,204.84,44.6581768]
[1738648349847,48.0735768,204.95,204.86,44.6581768]
[1738648350214,0.03,204.96,204.91,44.6581768]
[1738648351457,0.03,204.96,204.95,44.6581768]
[1738648351827,0.03,204.96,204.91,44.6581768]
[1738648352029,44.6581768,204.94,204.86,5.6404]
[1738648352254,20.0,204.91,204.86,5.6404]
[1738648352452,44.6581768,204.9,204.81,44.6581768]
[1738648352657,20.0,204.89,204.83,44.6581768]
[1738648352966,0.03,204.96,204.83,44.6581768]
[1738648352967,0.12549,204.93,204.83,44.6581768]
[1738648353163,13.44184853,204.96,204.89,44.6581768]
[1738648353164,0.03,204.96,204.89,44.6581768]
[1738648353374,0.03,204.96,204.93,44.6581768]
[1738648353555,0.03,204.96,204.95,44.6581768]
[1738648353735,0.03,204.96,204.95,58.07002533]
[1738648353937,0.03,205.0,204.98,20.0]
[1738648354248,44.6581768,205.19,205.02,20.0]
[1738648354443,3.4417,205.18,205.06,44.6581768]
[1738648354648,3.412,205.16,205.06,44.6581768]
[1738648354828,44.6581768,205.17,205.06,44.6581768]
[1738648355034,20.0,205.1,205.04,44.6581768]
[1738648355252,0.03,205.12,205.02,44.6581768]
[1738648355454,48.0712768,205.09,205.0,44.6581768]
[1738648355652,44.6581768,205.05,204.95,49.8248768]
[1738648355858,44.6881768,205.07,204.97,44.6581768]
[1738648356031,0.03,205.07,204.9,44.6581768]
[1738648356237,0.12549,204.96,204.88,44.6581768]
[1738648356538,64.6581768,204.95,204.86,44.6581768]
[1738648356744,44.6581768,204.95,204.86,44.6581768]
[1738648356946,44.6581768,204.93,204.85,5.4156]
[1738648357156,44.6581768,204.99,204.91,44.6581768]
[1738648357560,13.53733853,204.94,204.8,44.6581768]
[1738648357770,44.6581768,205.0,204.8,44.6581768]
[1738648357771,3.4138,205.05,204.87,1.0]
[1738648357960,0.03,205.12,205.03,44.6581768]
[1738648358460,0.03,205.12,205.05,44.6581768]
[1738648359471,0.03,205.12,205.06,18.41393853]
[1738648359645,0.03,205.12,205.06,18.28844853]
[1738648360347,0.03,205.12,205.05,44.6581768]
[1738648360542,0.03,205.12,204.99,6.7]
[1738648360543,0.03,205.12,205.09,44.6581768]
[1738648360770,0.03,205.12,205.11,44.6581768]
[1738648361073,0.03,205.12,205.1,44.6581768]
[1738648361852,0.03,205.12,205.04,44.6581768]
[1738648362055,0.03,205.12,205.06,44.6581768]
[1738648362267,44.6581768,205.09,205.0,44.6581768]
[1738648362573,0.03,205.12,205.07,44.6581768]
[1738648362757,44.6581768,205.1,204.94,10.2225]
[1738648362955,44.8136668,205.12,205.02,44.6581768]
[1738648363159,44.7836668,205.1,205.02,44.6581768]
[1738648363354,20.0,205.11,205.04,44.6581768]
[1738648363556,0.03,205.12,205.08,44.6581768]
[1738648363757,0.03,205.12,205.1,44.6581768]
[1738648365061,0.03,205.27,205.18,20.0]
[1738648365276,0.03,205.27,205.26,44.6581768]
[1738648365500,0.03,205.27,205.2,44.6581768]
[1738648365788,0.03,205.27,205.18,44.6581768]
[1738648365997,0.03,205.27,205.23,44.6581768]
[1738648366165,0.03,205.27,205.21,44.6581768]
[1738648366691,0.03,205.27,205.19,44.6581768]
[1738648367193,44.6881768,205.27,205.19,44.6581768]
[1738648367398,0.03,205.27,205.21,44.6581768]
[1738648367563,0.03,205.27,205.23,44.6581768]
[1738648367764,0.03,205.27,205.25,44.6581768]
[1738648367964,0.03,205.27,205.15,6.29121963]
[1738648367965,0.03,205.27,205.19,44.6581768]
[1738648368190,0.12549,205.26,205.19,44.6581768]
[1738648368394,0.12549,205.26,205.17,44.6581768]
[1738648368566,44.6581768,205.23,205.15,50.2184768]
[1738648369075,0.12549,205.24,205.15,44.6581768]
[1738648369401,44.6881768,205.27,205.17,44.6581768]
[1738648369593,3.4103,205.26,205.17,44.6581768]
[1738648369890,44.6581768,205.25,205.17,44.6581768]
[1738648370260,0.12549,205.25,205.17,44.6581768]
[1738648370894,3.4103,205.26,205.19,44.6581768]
[1738648371075,3.4103,205.26,205.17,44.6581768]
[1738648371273,44.7836668,205.25,205.15,44.6581768]
[1738648371471,3.4106,205.24,205.15,44.6581768]
[1738648371672,3.4104,205.26,205.17,44.6581768]
[1738648372181,3.4104,205.26,205.19,44.6581768]
[1738648372682,44.6881768,205.27,205.1,56.8469768]
[1738648372683,3.4401,205.27,205.17,44.6581768]
[1738648372889,48.2237668,205.27,205.17,44.6581768]
[1738648373092,3.4401,205.27,205.19,44.6581768]
[1738648373278,20.0,205.26,205.19,44.6581768]
[1738648373603,0.03,205.27,205.21,44.6581768]
[1738648373900,0.15549,205.27,205.19,44.6581768]
[1738648374078,44.8136668,205.27,205.19,44.6581768]
[1738648374279,0.12549,205.24,205.17,44.6581768]
[1738648374594,44.6581768,205.23,205.13,44.6581768]
[1738648375362,0.12549,205.24,205.13,44.6581768]
[1738648375363,44.6581768,205.21,205.13,44.6581768]
[1738648375567,44.6581768,205.21,205.05,31.86304853]
[1738648375568,20.0,205.16,205.09,44.6581768]
[1738648375795,20.0,205.14,205.07,44.6581768]
[1738648375998,44.6581768,205.17,205.09,44.6581768]
[1738648376203,3.4113,205.2,205.11,44.6581768]
[1738648376404,44.6881768,205.27,205.17,44.6581768]
[1738648376571,0.03,205.24,205.19,44.6581768]
[1738648376770,0.03,205.24,205.17,44.6581768]
[1738648377201,0.03,205.24,205.07,0.25098]
[1738648377202,44.6581768,205.23,205.15,44.6581768]
[1738648377403,0.03,205.24,205.15,44.6581768]
[1738648377606,3.4113,205.2,205.13,44.6581768]
[1738648377778,44.6581768,205.23,205.13,44.6581768]
[1738648377977,44.6581768,205.21,205.11,44.6581768]
[1738648378506,44.6581768,205.21,205.13,44.6581768]
[1738648379006,44.6581768,205.17,205.07,44.6581768]
[1738648379297,44.6581768,205.21,205.11,44.6581768]
[1738648379500,44.6581768,205.19,205.11,44.6581768]
[1738648379710,48.0697768,205.19,205.11,44.6581768]
[1738648379883,44.6581768,205.17,205.09,44.6581768]
[1738648380082,44.6581768,205.17,205.07,44.6581768]
[1738648380276,48.0697768,205.19,205.11,44.6581768]
[1738648380471,3.4116,205.19,205.11,44.6581768]
[1738648380672,48.0693768,205.21,205.11,44.6581768]
[1738648380874,44.6581768,205.15,205.05,50.2156768]
[1738648381100,0.12549,205.14,205.05,50.2156768]
[1738648381308,44.6581768,205.11,205.03,44.6581768]
[1738648381602,44.6581768,205.14,205.05,44.6581768]
[1738648381809,3.4124,205.13,205.05,44.6581768]
[1738648382102,44.6581768,205.12,205.03,44.6581768]